bitfinex/quotes_BTCUSD_20251031
["timestamp","ask_amount","ask_price","bid_price","bid_amount"]
[1761878379036,2.28264212,109090.0,109080.0,0.16175147]
[1761878379240,2.28264212,109090.0,109080.0,0.16275147]
[1761878380106,2.28264212,109090.0,109080.0,0.16375147]
[1761878381659,2.29692212,109090.0,109080.0,0.13946147]
[1761878381862,2.36411757,109090.0,109080.0,0.13946147]
[1761878382536,2.81167755,109090.0,109080.0,0.13946147]
[1761878382733,2.81167755,109090.0,109080.0,0.16375147]
[1761878382959,2.35697757,109090.0,109080.0,0.16375147]
[1761878384157,2.34983757,109090.0,109080.0,0.16375147]
[1761878385388,2.34983757,109090.0,109080.0,0.34710313]
[1761878385591,2.34983757,109090.0,109080.0,0.16375147]
[1761878386812,2.34983757,109090.0,109080.0,0.34710313]
[1761878387365,2.0766837,109090.0,109080.0,0.34710313]
[1761878387591,0.00014425,109090.0,109080.0,0.33855407]
[1761878389357,0.00014425,109090.0,109080.0,0.79325405]
[1761878390249,0.00014425,109090.0,109080.0,0.33855407]
[1761878390853,0.00014425,109090.0,109080.0,0.79325405]
[1761878391802,0.00014425,109090.0,109080.0,0.88307306]
[1761878393141,0.00014425,109090.0,109080.0,0.88298522]
[1761878393915,0.00014425,109090.0,109080.0,0.93067673]
[1761878394817,0.00014425,109090.0,109080.0,0.88298522]
[1761878395548,0.00014425,109090.0,109080.0,1.22817664]
[1761878396200,2.0,109100.0,109090.0,0.21954041]
[1761878396445,2.0,109100.0,109090.0,0.61996978]
[1761878396777,2.0,109100.0,109090.0,0.63618978]
[1761878397268,2.0,109100.0,109090.0,0.23624408]
[1761878397469,0.001,109100.0,109090.0,0.23624408]
[1761878400461,0.001,109100.0,109090.0,1.06607054]
[1761878401001,0.001,109100.0,109090.0,0.32606309]
[1761878401199,0.001,109100.0,109090.0,0.23624408]
[1761878401488,2.0,109100.0,109090.0,0.23624408]
[1761878401613,2.0,109100.0,109090.0,0.23769231]
[1761878401824,0.18331805,109100.0,109090.0,0.0543719]
[1761878402285,0.18331805,109100.0,109090.0,0.0019319]
[1761878402286,3.05150509,109100.0,109090.0,0.0019319]
[1761878402420,3.05150389,109100.0,109090.0,0.01051933]
[1761878402624,3.05150389,109100.0,109090.0,0.0019319]
[1761878402824,3.05150389,109100.0,109090.0,0.0039319]
[1761878403031,3.05150389,109100.0,109090.0,0.0069319]
[1761878403269,3.05150389,109100.0,109090.0,0.0039319]
[1761878403472,3.04436389,109100.0,109090.0,0.0039319]
[1761878403684,3.04536389,109100.0,109090.0,0.0009319]
[1761878404084,3.04836389,109100.0,109090.0,0.0009319]
[1761878406550,2.36093938,109100.0,109090.0,0.07170538]
[1761878406754,2.36093938,109100.0,109090.0,0.23670676]
[1761878406960,2.52731805,109100.0,109090.0,0.0533719]
[1761878407169,2.18731805,109100.0,109090.0,0.0533719]
[1761878407369,2.18731805,109100.0,109090.0,0.23670676]
[1761878407581,2.18731805,109100.0,109090.0,0.0533719]
[1761878407786,2.004,109100.0,109090.0,0.23670676]
[1761878408277,2.20667245,109100.0,109090.0,0.0533719]
[1761878409137,2.29649146,109100.0,109090.0,0.0533719]
[1761878410472,2.0233544,109100.0,109090.0,0.23670676]
[1761878411531,0.0233544,109100.0,109090.0,0.23670676]
[1761878411769,0.004,109100.0,109090.0,0.63671421]
[1761878411989,0.004,109100.0,109090.0,0.32652577]
[1761878412901,0.001,109100.0,109090.0,0.32652577]
[1761878413122,0.001,109100.0,109090.0,0.32752577]
[1761878413572,0.21180915,109120.0,109100.0,0.18331046]
[1761878413573,2.0,109110.0,109100.0,0.18331046]
[1761878413797,2.0,109110.0,109100.0,0.20717046]
[1761878414132,2.0,109110.0,109100.0,0.20739455]
[1761878414210,2.0,109110.0,109100.0,0.22342455]
[1761878414825,2.0,109110.0,109100.0,0.67458321]
[1761878415027,2.0,109120.0,109110.0,0.18330125]
[1761878415232,2.01935707,109120.0,109110.0,0.20716125]
[1761878415433,2.01935707,109120.0,109110.0,0.22319125]
[1761878416473,0.40000745,109130.0,109120.0,0.18328445]
[1761878416679,2.01935244,109130.0,109120.0,0.22257445]
[1761878417270,2.0,109130.0,109120.0,0.22257445]
[1761878417831,0.001,109130.0,109120.0,0.22257445]
[1761878418697,2.18325087,109140.0,109130.0,0.05182]
[1761878418917,2.29241516,109140.0,109130.0,0.05182]
[1761878419333,2.29241516,109140.0,109130.0,0.23508766]
[1761878419727,2.29241516,109140.0,109130.0,0.05182]
[1761878419960,2.29256059,109140.0,109130.0,0.05082]
[1761878420655,2.29356059,109140.0,109130.0,0.05082]
[1761878420999,2.29256059,109140.0,109130.0,0.05082]
[1761878421664,2.99878935,109140.0,109130.0,0.01153]
[1761878422024,2.18326766,109130.0,109120.0,0.03553]
[1761878422444,2.18326766,109130.0,109120.0,0.23510445]
[1761878422659,2.18326766,109130.0,109120.0,0.05182]
[1761878423416,2.18326766,109130.0,109120.0,0.05382]
[1761878423824,2.88949642,109130.0,109120.0,0.05382]
[1761878424025,2.88949642,109130.0,109120.0,0.03082]
[1761878425506,2.90880846,109130.0,109120.0,0.03082]
[1761878425907,2.67392849,109130.0,109120.0,0.03082]
[1761878426110,2.88949642,109130.0,109120.0,0.03082]
[1761878426432,2.88949642,109130.0,109120.0,0.05182]
[1761878426433,2.88135642,109130.0,109120.0,0.05182]
[1761878426644,2.89149642,109130.0,109120.0,0.05182]
[1761878427051,2.89149642,109130.0,109120.0,0.02782]
[1761878427189,2.19340766,109130.0,109120.0,0.02782]
[1761878427393,3.32131543,109130.0,109120.0,0.01153]
[1761878427591,0.18330125,109110.0,109100.0,0.20754214]
[1761878428072,0.18330125,109110.0,109100.0,0.23536214]
[1761878428770,0.18330125,109110.0,109100.0,0.05404409]
[1761878429277,2.85834783,109120.0,109110.0,0.0279]
[1761878429442,2.86648783,109120.0,109110.0,0.0279]
[1761878431975,2.97561687,109120.0,109110.0,0.0279]
[1761878432779,2.18330125,109110.0,109100.0,0.03575409]
[1761878433030,2.18330125,109110.0,109100.0,0.21907214]
[1761878433237,2.0,109110.0,109100.0,0.21138214]
[1761878433786,2.18330125,109110.0,109100.0,0.23561214]
[1761878434024,2.18330125,109110.0,109100.0,0.23661214]
[1761878434243,2.18330125,109110.0,109100.0,0.23861214]
[1761878434730,2.18330125,109110.0,109100.0,0.05529409]
[1761878435066,2.88139001,109110.0,109100.0,0.05529409]
[1761878435398,2.18330125,109110.0,109100.0,0.05529409]
[1761878435599,3.32748902,109110.0,109100.0,0.00322409]
[1761878435794,3.3468442,109110.0,109100.0,0.00322409]
[1761878436215,3.41413044,109110.0,109100.0,0.00322409]
[1761878436778,3.41413044,109110.0,109100.0,0.00222409]
[1761878436940,3.41413044,109110.0,109100.0,0.00022409]
[1761878437143,3.42427044,109110.0,109100.0,0.00022409]
[1761878437364,3.52651788,109110.0,109100.0,0.00022409]
[1761878437764,3.57050975,109110.0,109100.0,0.00022409]
[1761878438132,3.59806553,109110.0,109100.0,0.00022409]
[1761878438789,4.02530259,109110.0,109100.0,0.00022409]
[1761878438996,4.03968178,109110.0,109100.0,0.00022409]
[1761878439221,4.06148487,109110.0,109100.0,1e-08]
[1761878439397,0.18333486,109090.0,109080.0,0.10031216]
[1761878439595,3.12562194,109090.0,109080.0,0.10031216]
[1761878439801,3.18018608,109090.0,109080.0,0.10031216]
[1761878440110,3.18068078,109090.0,109080.0,0.10031216]
[1761878440666,3.18368078,109090.0,109080.0,0.10079583]
[1761878440870,3.18568078,109090.0,109080.0,0.10079583]
[1761878441072,3.18268078,109090.0,109080.0,0.10079583]
[1761878441276,3.24893202,109090.0,109080.0,0.10079583]
[1761878441417,3.22186306,109090.0,109080.0,0.10079583]
[1761878441896,3.24893202,109090.0,109080.0,0.10079583]
[1761878442038,3.23624351,109090.0,109080.0,0.10079583]
[1761878442445,3.26331247,109090.0,109080.0,0.10079583]
[1761878442648,3.60331247,109090.0,109080.0,0.10079583]
[1761878442855,3.58893202,109090.0,109080.0,0.10079583]
[1761878443052,3.56186306,109090.0,109080.0,0.10079583]
[1761878443458,3.58893202,109090.0,109080.0,0.10079583]
[1761878444285,3.56186306,109090.0,109080.0,0.10079583]
[1761878444495,3.56180071,109090.0,109080.0,0.10079583]
[1761878444906,3.56180071,109090.0,109080.0,0.10124413]
[1761878445668,3.5761818,109090.0,109080.0,0.10124413]
[1761878448529,3.60325076,109090.0,109080.0,0.10124413]
[1761878450092,3.60325076,109090.0,109080.0,1e-08]
[1761878450093,3.95927715,109090.0,109080.0,1e-08]
[1761878450295,4.02341884,109090.0,109080.0,1e-08]
[1761878450610,4.02339314,109090.0,109080.0,1e-08]
[1761878450952,2.0,109040.0,109020.0,0.23534479]
[1761878451138,2.0,109030.0,109020.0,0.23534479]
[1761878451560,2.0,109030.0,109020.0,0.25076479]
[1761878452212,0.18343575,109030.0,109020.0,0.25076479]
[1761878452420,0.67389039,109040.0,109020.0,0.25076479]
[1761878452621,0.4001681,109030.0,109020.0,0.23534479]
[1761878452824,0.83047147,109040.0,109030.0,0.02773]
[1761878453028,3.01389039,109040.0,109030.0,0.01231]
[1761878453256,2.83047147,109040.0,109030.0,0.05084]
[1761878453471,2.83047147,109040.0,109030.0,0.23427575]
[1761878453680,2.43030337,109040.0,109030.0,0.23427575]
[1761878453886,2.09030337,109040.0,109030.0,0.23427575]
[1761878454092,2.27372229,109040.0,109030.0,0.23627575]
[1761878454308,2.27372229,109040.0,109030.0,0.06138182]
[1761878454512,2.09030337,109040.0,109030.0,0.24481757]
[1761878454867,2.49047147,109040.0,109030.0,0.24481757]
[1761878455072,2.68255039,109040.0,109030.0,0.03827182]
[1761878456161,2.68255039,109040.0,109030.0,0.03927182]
[1761878456783,2.68255039,109040.0,109030.0,0.06238182]
[1761878457186,2.68255039,109040.0,109030.0,0.03927182]
[1761878457384,3.08357483,109040.0,109030.0,0.03927182]
[1761878459008,3.42357483,109040.0,109030.0,0.02696182]
[1761878459442,3.42357483,109040.0,109030.0,0.01842]
[1761878459664,2.62238229,109040.0,109030.0,0.03073]
[1761878459877,3.02297856,109040.0,109030.0,0.05384]
[1761878460095,3.03163856,109040.0,109030.0,0.03073]
[1761878460520,3.02297856,109040.0,109030.0,0.05384]
[1761878462021,2.61372229,109040.0,109030.0,0.05384]
[1761878462233,2.61372229,109040.0,109030.0,0.05496137]
[1761878462431,3.01431856,109040.0,109030.0,0.05496137]
[1761878462772,3.01431856,109040.0,109030.0,0.23839712]
[1761878463206,2.00048436,109040.0,109030.0,0.23839712]
[1761878463416,0.00048436,109040.0,109030.0,0.63899339]
[1761878467194,0.00048436,109040.0,109030.0,0.23839712]
[1761878467654,0.18390328,109040.0,109030.0,0.23839712]
[1761878467871,0.18390328,109040.0,109030.0,0.63899339]
[1761878468735,0.18390328,109040.0,109030.0,0.23839712]
[1761878469172,2.58449955,109040.0,109030.0,0.05496137]
[1761878469388,2.60392867,109040.0,109030.0,0.05496137]
[1761878469608,2.70240768,109040.0,109030.0,0.05496137]
[1761878469828,2.78826775,109040.0,109030.0,0.05496137]
[1761878470258,2.78826775,109040.0,109030.0,0.03185137]
[1761878470472,2.77960775,109040.0,109030.0,0.05496137]
[1761878470954,2.37901148,109040.0,109030.0,0.05496137]
[1761878471184,2.77960775,109040.0,109030.0,0.05496137]
[1761878471843,2.37901148,109040.0,109030.0,0.05496137]
[1761878472068,2.71067572,109040.0,109030.0,0.05496137]
[1761878473391,2.71933572,109040.0,109030.0,0.03185137]
[1761878474061,2.31873945,109040.0,109030.0,0.04044816]
[1761878474289,3.11993199,109040.0,109030.0,0.04044816]
[1761878474573,3.18934549,109040.0,109030.0,0.04044816]
[1761878475003,3.18934549,109040.0,109030.0,0.03185137]
[1761878476093,3.19800549,109040.0,109030.0,0.00412137]
[1761878476308,3.55641822,109040.0,109030.0,0.00412137]
[1761878477002,3.55641822,109040.0,109030.0,0.02017137]
[1761878477422,3.55641822,109040.0,109030.0,0.00412137]
[1761878479158,3.55641822,109040.0,109030.0,0.02017137]
[1761878479455,3.55641822,109040.0,109030.0,0.00412137]
[1761878480418,3.36505491,109040.0,109030.0,0.00412137]
[1761878480625,3.54847383,109040.0,109030.0,0.00412137]
[1761878480826,3.54847383,109040.0,109030.0,0.02017137]
[1761878481342,3.54847383,109040.0,109030.0,0.03223137]
[1761878481976,3.54847383,109040.0,109030.0,0.00412137]
[1761878482546,3.55713383,109040.0,109030.0,0.00412137]
[1761878482752,3.54847383,109040.0,109030.0,0.00412137]
[1761878483725,3.54847383,109040.0,109030.0,0.00212137]
[1761878484149,3.54947383,109040.0,109030.0,0.00212137]
[1761878484556,3.54947383,109040.0,109030.0,0.00112137]
[1761878485425,3.99491238,109040.0,109030.0,0.00112137]
[1761878485707,4.02249086,109040.0,109030.0,0.00112137]
[1761878485881,3.62189459,109040.0,109030.0,0.00112137]
[1761878486234,3.5224011,109040.0,109030.0,0.00112137]
[1761878486600,3.5310611,109040.0,109030.0,0.00112137]
[1761878487993,3.5224011,109040.0,109030.0,0.00112137]
[1761878488225,3.5224011,109040.0,109030.0,0.02923137]
[1761878488429,3.5224011,109040.0,109030.0,0.05229137]
[1761878488873,3.5224011,109040.0,109030.0,0.02923137]
[1761878489311,3.5224011,109040.0,109030.0,0.05229137]
[1761878490028,3.5137411,109040.0,109030.0,0.05229137]
[1761878491834,3.5224011,109040.0,109030.0,0.02923137]
[1761878492248,3.54947383,109040.0,109030.0,0.02923137]
[1761878493899,3.54947459,109040.0,109030.0,0.02923137]
[1761878494966,3.54947459,109040.0,109030.0,0.01318137]
[1761878495169,3.54947459,109040.0,109030.0,0.00112137]
[1761878495579,3.55813459,109040.0,109030.0,0.00112137]
[1761878498014,3.54947459,109040.0,109030.0,0.00112137]
[1761878498353,3.55813459,109040.0,109030.0,0.00112137]
[1761878499578,3.95873086,109040.0,109030.0,0.00112137]
[1761878500208,3.55813459,109040.0,109030.0,0.00112137]
[1761878500416,3.95873086,109040.0,109030.0,0.00112137]
[1761878500626,3.55813459,109040.0,109030.0,0.00112137]
[1761878501039,3.95873086,109040.0,109030.0,0.00112137]
[1761878502798,4.20343086,109040.0,109030.0,0.00112137]
[1761878503008,4.02416111,109040.0,109030.0,0.00112137]
[1761878504476,4.02418665,109040.0,109030.0,0.00112137]
[1761878505698,4.05176516,109040.0,109030.0,0.00112137]
[1761878506122,4.08794744,109040.0,109030.0,0.00112137]
[1761878506546,4.05176516,109040.0,109030.0,0.00112137]
[1761878508619,2.84997635,109040.0,109030.0,0.00112137]
[1761878508835,3.65116889,109040.0,109030.0,0.00112137]
[1761878509093,3.64250889,109040.0,109030.0,0.00112137]
[1761878509304,3.61493038,109040.0,109030.0,0.00112137]
[1761878509516,3.62359038,109040.0,109030.0,0.00112137]
[1761878509751,4.02418665,109040.0,109030.0,0.00112137]
[1761878509963,4.03857287,109040.0,109030.0,0.00112137]
[1761878510167,3.6379766,109040.0,109030.0,0.00112137]
[1761878511579,3.60224387,109040.0,109030.0,0.00112137]
[1761878511780,3.61090387,109040.0,109030.0,0.00112137]
[1761878512396,4.03857287,109040.0,109030.0,0.00112137]
[1761878512618,2.82812406,109040.0,109030.0,0.00112137]
[1761878512855,3.34888387,109040.0,109030.0,0.05371137]
[1761878513054,3.34315765,109040.0,109030.0,0.02936137]
[1761878513285,3.34315765,109040.0,109030.0,0.00112137]
[1761878513631,3.35181765,109040.0,109030.0,0.00112137]
[1761878514123,3.34315765,109040.0,109030.0,0.00112137]
[1761878514461,3.35181765,109040.0,109030.0,0.00112137]
[1761878514914,3.34315765,109040.0,109030.0,0.00112137]
[1761878515235,3.35181765,109040.0,109030.0,0.00112137]
[1761878516441,2.55062511,109040.0,109030.0,0.00112137]
[1761878516663,3.35181765,109040.0,109030.0,0.00112137]
[1761878519312,2.95133952,109040.0,109030.0,0.00112137]
[1761878519974,2.7480128,109040.0,109030.0,0.00112137]
[1761878520421,2.77508553,109040.0,109030.0,0.00112137]
[1761878520828,2.37437112,109040.0,109030.0,0.00112137]
[1761878521034,2.7393528,109040.0,109030.0,0.05371137]
[1761878521263,2.7393528,109040.0,109030.0,0.02936137]
[1761878521471,2.7393528,109040.0,109030.0,0.01275137]
[1761878521684,2.76642553,109040.0,109030.0,0.00112137]
[1761878521885,2.77508553,109040.0,109030.0,0.00112137]
[1761878525027,2.37437112,109040.0,109030.0,0.00112137]
[1761878525248,2.77508553,109040.0,109030.0,0.00112137]
[1761878527322,2.83833709,109040.0,109030.0,0.00112137]
[1761878527546,2.86591643,109040.0,109030.0,0.00112137]
[1761878528697,2.83833709,109040.0,109030.0,0.00112137]
[1761878529646,2.81126781,109040.0,109030.0,0.00112137]
[1761878531048,2.8256545,109040.0,109030.0,0.00112137]
[1761878531308,2.78947222,109040.0,109030.0,0.00112137]
[1761878532145,2.78081222,109040.0,109030.0,0.00112137]
[1761878532350,2.78947222,109040.0,109030.0,0.00112137]
[1761878533134,2.78947438,109040.0,109030.0,0.00112137]
[1761878533402,2.78081438,109040.0,109030.0,0.00112137]
[1761878533726,2.78081438,109040.0,109030.0,0.01773137]
[1761878533959,2.78081438,109040.0,109030.0,0.00112137]
[1761878534178,2.78947438,109040.0,109030.0,0.00112137]
[1761878537529,3.25344035,109040.0,109030.0,0.00112137]
[1761878537728,2.88030696,109040.0,109030.0,0.00112137]
[1761878537929,2.8170554,109040.0,109030.0,0.00112137]
[1761878538350,2.81613209,109040.0,109030.0,0.00112137]
[1761878538585,2.78755107,109040.0,109030.0,0.00112137]
[1761878538827,2.79555107,109040.0,109030.0,0.00112137]
[1761878539059,2.83173335,109040.0,109030.0,0.00112137]
[1761878539278,2.82773335,109040.0,109030.0,0.00112137]
[1761878539411,2.85531272,109040.0,109030.0,0.00112137]
[1761878539618,2.86131272,109040.0,109030.0,0.00112137]
[1761878543411,2.46059831,109040.0,109030.0,0.00112137]
[1761878543614,2.86131272,109040.0,109030.0,0.00112137]
[1761878544395,3.26202713,109040.0,109030.0,0.00112137]
[1761878544794,2.86131272,109040.0,109030.0,0.00112137]
[1761878544996,3.28909641,109040.0,109030.0,0.00112137]
[1761878546174,2.533204,109010.0,109000.0,30.001]
[1761878546398,2.676757,109010.0,109000.0,30.02151426]
[1761878546635,2.676757,109010.0,109000.0,30.04623426]
[1761878546828,2.70433898,109010.0,109000.0,30.04623426]
[1761878547047,2.68701898,109010.0,109000.0,30.04623426]
[1761878547253,2.68701898,109010.0,109000.0,30.03763]
[1761878547602,2.67003411,109010.0,109000.0,30.03763]
[1761878548689,2.33003411,109010.0,109000.0,30.03763]
[1761878550742,2.12555193,109010.0,109000.0,30.03763]
[1761878551731,2.12555193,109010.0,109000.0,30.03830316]
[1761878551969,2.12555193,109010.0,109000.0,30.22178939]
[1761878552114,1.9293197,109010.0,109000.0,30.22178939]
[1761878553422,2.0,109020.0,109000.0,30.6225038]
[1761878553628,2.0,109020.0,109010.0,0.07027694]
[1761878553832,2.0,109020.0,109010.0,0.05193]
[1761878553979,0.18345257,109020.0,109010.0,0.05193]
[1761878554838,2.70628832,109020.0,109010.0,0.05193]
[1761878554974,2.71461832,109020.0,109010.0,0.01191]
[1761878555172,2.73912832,109020.0,109010.0,0.01191]
[1761878555961,2.73912832,109020.0,109000.0,30.19639623]
[1761878556169,2.1834694,109010.0,109000.0,30.22111623]
[1761878557353,2.0,109010.0,109000.0,30.22111623]
[1761878557992,2.0,109010.0,109000.0,30.22411623]
[1761878565557,0.27327174,109020.0,109000.0,30.22411623]
[1761878565748,2.0,109010.0,109000.0,30.19939623]
[1761878566158,2.0,109010.0,109000.0,30.20006939]
[1761878566378,2.0,109020.0,109010.0,0.1834694]
[1761878566532,2.01944209,109020.0,109010.0,0.2359094]
[1761878566744,2.01944209,109020.0,109010.0,0.23635813]
[1761878567112,2.20289466,109020.0,109010.0,0.23635813]
[1761878567751,2.01944209,109020.0,109010.0,0.23635813]
[1761878570536,2.20289466,109020.0,109010.0,0.02870873]
[1761878570713,2.20289466,109020.0,109000.0,29.98575142]
[1761878570714,2.2075394,109010.0,109000.0,29.98575142]
[1761878570908,2.6276959,109010.0,109000.0,29.98575142]
[1761878571266,2.6276959,109010.0,109000.0,30.01015583]
[1761878571467,2.71751491,109010.0,109000.0,30.01015583]
[1761878571666,2.71751491,109010.0,109000.0,29.98597583]
[1761878571875,2.71751491,109010.0,109000.0,29.98797583]
[1761878572302,2.71751491,109010.0,109000.0,29.98897583]
[1761878572500,2.71751491,109010.0,109000.0,30.01315583]
[1761878572660,2.74435278,109010.0,109000.0,30.01315583]
[1761878575040,2.72861278,109010.0,109000.0,30.01315583]
[1761878575219,2.72028278,109010.0,109000.0,30.01315583]
[1761878577237,2.69344491,109010.0,109000.0,30.01315583]
[1761878578272,2.72102425,109010.0,109000.0,30.01315583]
[1761878579561,2.72111696,109010.0,109000.0,30.01315583]
[1761878580146,2.50921858,109010.0,109000.0,30.01315583]
[1761878580316,0.74517696,109010.0,109000.0,29.98897583]
[1761878580540,2.74517696,109010.0,109000.0,29.98897583]
[1761878580776,2.74517696,109010.0,109000.0,30.01315583]
[1761878581015,2.72943696,109010.0,109000.0,30.01315583]
[1761878581217,2.72111696,109010.0,109000.0,30.01315583]
[1761878581650,2.32030984,109010.0,109000.0,30.19664206]
[1761878581849,2.72111696,109010.0,109000.0,30.01315583]
[1761878583129,2.74517696,109010.0,109000.0,29.98897583]
[1761878583333,2.74517696,109010.0,109000.0,30.01315583]
[1761878583568,2.72943696,109010.0,109000.0,30.01315583]
[1761878583779,2.72111696,109010.0,109000.0,30.01315583]
[1761878586178,2.76871696,109010.0,109000.0,29.97706583]
[1761878586597,2.74517696,109010.0,109000.0,29.97706583]
[1761878586808,2.74517696,109010.0,109000.0,29.98870583]
[1761878587016,2.74517696,109010.0,109000.0,30.01288583]
[1761878587228,2.32862984,109010.0,109000.0,29.98670583]
[1761878587447,2.72111696,109010.0,109000.0,30.01088583]
[1761878587862,2.72111696,109010.0,109000.0,30.00988583]
[1761878588796,2.73685696,109010.0,109000.0,30.00988583]
[1761878589638,2.72111696,109010.0,109000.0,30.00988583]
[1761878591553,2.73685696,109010.0,109000.0,30.00988583]
[1761878592204,2.72111696,109010.0,109000.0,30.00988583]
[1761878592405,2.73685696,109010.0,109000.0,30.00988583]
[1761878593498,2.32030984,109010.0,109000.0,30.00988583]
[1761878593699,2.72111696,109010.0,109000.0,30.00988583]
[1761878594446,2.51006822,109010.0,109000.0,30.19337206]
[1761878594656,2.01944209,109010.0,109000.0,30.19337206]
[1761878595217,2.42024921,109010.0,109000.0,30.19337206]
[1761878596264,2.01944209,109010.0,109000.0,30.19337206]
[1761878596472,2.01944209,109010.0,109000.0,30.19437206]
[1761878597047,2.01944209,109010.0,109000.0,30.19637206]
[1761878597259,2.01944209,109010.0,109000.0,30.28619107]
[1761878597448,0.01944209,109010.0,109000.0,30.19637206]
[1761878597644,2.18345277,109020.0,109010.0,0.1834694]
[1761878597962,2.62068245,109020.0,109010.0,0.2348594]
[1761878598350,0.01944209,109020.0,109010.0,0.2348594]
[1761878598679,2.95807276,109030.0,109020.0,0.18345257]
[1761878599028,3.05048583,109030.0,109020.0,0.23484257]
[1761878599407,3.05048583,109030.0,109020.0,0.05139]
[1761878600025,3.05048583,109030.0,109020.0,0.23484257]
[1761878600254,3.05148583,109030.0,109020.0,0.23484257]
[1761878601106,2.43823099,109030.0,109020.0,0.23484257]
[1761878601312,2.02044209,109030.0,109020.0,0.23484257]
[1761878601520,2.42324921,109030.0,109020.0,0.23484257]
[1761878601938,2.42124921,109030.0,109020.0,0.23484257]
[1761878602144,2.42024921,109030.0,109020.0,0.23484257]
[1761878602365,2.01944209,109030.0,109020.0,0.23484257]
[1761878602579,2.0,109040.0,109030.0,0.18343575]
[1761878602791,2.0,109040.0,109030.0,0.23482575]
[1761878603911,2.0,109040.0,109030.0,0.23682575]
[1761878604951,2.0,109040.0,109030.0,0.23782575]
[1761878606047,2.0,109050.0,109040.0,0.18341892]
[1761878606262,2.0,109050.0,109040.0,0.23495317]
[1761878606687,2.0,109050.0,109040.0,0.63576029]
[1761878606910,2.0,109050.0,109040.0,0.7255793]
[1761878607141,0.00150712,109060.0,109050.0,0.1834021]
[1761878607390,0.00150712,109060.0,109050.0,0.2110221]
[1761878607652,0.00150712,109060.0,109050.0,0.2347921]
[1761878608663,0.00150712,109060.0,109050.0,0.63559922]
[1761878608908,0.00150712,109060.0,109050.0,0.2357921]
[1761878609620,0.00150712,109060.0,109050.0,0.2377921]
[1761878609866,0.03027517,109060.0,109050.0,0.2377921]
[1761878611074,0.03027517,109060.0,109050.0,0.2387921]
[1761878611371,3.24031684,109060.0,109050.0,0.004]
[1761878611766,3.21347897,109060.0,109050.0,0.004]
[1761878611977,2.41186473,109060.0,109050.0,0.004]
[1761878612190,3.21347897,109060.0,109050.0,0.004]
[1761878612406,2.1834021,109050.0,109040.0,0.03631425]
[1761878612620,2.58420922,109050.0,109040.0,0.03631425]
[1761878612833,2.58420922,109050.0,109040.0,0.05153425]
[1761878613310,2.60700029,109050.0,109040.0,0.05153425]
[1761878613551,2.63075029,109050.0,109040.0,0.05153425]
[1761878614193,2.63075029,109050.0,109040.0,0.02776425]
[1761878614596,2.7002537,109050.0,109040.0,0.02976425]
[1761878617473,3.0402537,109050.0,109040.0,0.02976425]
[1761878617679,3.0634337,109050.0,109040.0,0.02976425]
[1761878617888,3.0402537,109050.0,109040.0,0.02976425]
[1761878618714,3.01746263,109050.0,109040.0,0.02976425]
[1761878620404,2.61665551,109050.0,109040.0,0.02976425]
[1761878620815,3.01746263,109050.0,109040.0,0.05353425]
[1761878621646,2.61665551,109050.0,109040.0,0.05353425]
[1761878621853,3.01746263,109050.0,109040.0,0.05353425]
[1761878622465,3.03678083,109050.0,109040.0,0.05353425]
[1761878624635,2.61222371,109050.0,109040.0,0.23695317]
[1761878624831,3.01303083,109050.0,109040.0,0.05353425]
[1761878625486,2.27222371,109050.0,109040.0,0.23695317]
[1761878625699,0.70428659,109060.0,109040.0,0.63776029]
[1761878625909,2.0,109050.0,109040.0,0.19796317]
[1761878626116,0.1834021,109050.0,109040.0,0.01454425]
[1761878626321,0.1834021,109050.0,109040.0,0.02958425]
[1761878626616,0.58420922,109050.0,109040.0,0.05420425]
[1761878626821,0.58420922,109050.0,109040.0,0.23562317]
[1761878627375,0.58420922,109050.0,109040.0,0.05220425]
[1761878627779,0.58420922,109050.0,109040.0,0.05420425]
[1761878628190,0.1834021,109050.0,109040.0,0.23762317]
[1761878628555,2.58420922,109050.0,109040.0,0.23762317]
[1761878628950,2.59921922,109050.0,109040.0,0.05420425]
[1761878629244,2.626897,109050.0,109040.0,0.02958425]
[1761878629446,2.22608988,109050.0,109040.0,0.05420425]
[1761878629689,2.611887,109050.0,109040.0,0.05420425]
[1761878630128,2.21107988,109050.0,109040.0,0.05420425]
[1761878630339,2.626897,109050.0,109040.0,0.05420425]
[1761878631891,2.69609781,109050.0,109040.0,0.05420425]
[1761878632093,2.50021056,109050.0,109040.0,0.05420425]
[1761878632458,2.66860266,109050.0,109040.0,0.05420425]
[1761878632660,2.26779554,109050.0,109040.0,0.05420425]
[1761878632870,2.66860266,109050.0,109040.0,0.05420425]
[1761878633093,2.66028266,109050.0,109040.0,0.05420425]
[1761878634911,2.68361266,109050.0,109040.0,0.02958425]
[1761878635550,2.68361266,109050.0,109040.0,0.05420425]
[1761878636816,2.68361266,109050.0,109040.0,0.02958425]
[1761878638092,2.68361266,109050.0,109040.0,0.05420425]
[1761878638304,2.26779554,109050.0,109040.0,0.05420425]
[1761878638518,2.70058982,109050.0,109040.0,0.05420425]
[1761878638937,2.2847727,109050.0,109040.0,0.05420425]
[1761878639191,2.70058982,109050.0,109040.0,0.02958425]
[1761878639423,2.71497869,109050.0,109040.0,0.02958425]
[1761878639679,2.73960869,109050.0,109040.0,0.02958425]
[1761878640164,2.69562091,109050.0,109040.0,0.02958425]
[1761878640420,2.71501413,109050.0,109040.0,0.02958425]
[1761878640656,2.80483314,109050.0,109040.0,0.02958425]
[1761878640892,2.82946314,109050.0,109040.0,0.00214425]
[1761878641417,3.57027026,109050.0,109040.0,0.00214425]
[1761878641775,3.62451919,109050.0,109040.0,0.00214425]
[1761878642395,3.62451919,109050.0,109040.0,0.00014425]
[1761878642616,2.40826953,109050.0,109040.0,0.23553317]
[1761878642830,2.76901891,109050.0,109040.0,0.23553317]
[1761878643014,2.76901891,109050.0,109040.0,0.05211425]
[1761878643248,2.77101891,109050.0,109040.0,0.05211425]
[1761878643690,2.76901891,109050.0,109040.0,0.05211425]
[1761878643910,2.79234891,109050.0,109040.0,0.05411425]
[1761878644120,2.79234891,109050.0,109040.0,0.02949425]
[1761878644541,3.55568638,109050.0,109040.0,0.00214425]
[1761878644970,3.64587896,109050.0,109040.0,0.00214425]
[1761878645388,3.64587896,109050.0,109040.0,0.00014425]
[1761878645617,4.07616382,109050.0,109040.0,0.00014425]
[1761878645826,3.67545635,109050.0,109040.0,0.00014425]
[1761878646254,3.67345635,109050.0,109040.0,0.00014425]
[1761878646474,3.67745635,109050.0,109040.0,0.00014425]
[1761878648179,3.68045635,109050.0,109040.0,0.00014425]
[1761878653482,3.69484445,109050.0,109040.0,0.00014425]
[1761878653911,2.91169172,109010.0,109000.0,29.97406583]
[1761878654121,3.02903592,109010.0,109000.0,29.97406583]
[1761878654334,3.05294592,109010.0,109000.0,29.97406583]
[1761878655164,3.12325228,109010.0,109000.0,29.97806583]
[1761878655413,3.12325228,109010.0,109000.0,29.98006583]
[1761878656059,3.12325228,109010.0,109000.0,29.97406583]